Cogmind - Beta 11 @@@ ROGUE MODE // 2022.03.28 @ 03:56:18 Player: woegarden Result: Destroyed by S-10 Pest with Light Assault Rifle Performance ------------- Evolutions (0) 0 Regions Visited (1) 200 Robots Destroyed (12) 60 Value Destroyed (157) 157 Prototype IDs (0) 0 Alien Tech Used (0) 0 Bonus (0) 0 TOTAL SCORE: 417 Bonus ------- None Cogmind --------- Core Integrity 0/250 Matter 300/300 Energy 99/100 System Corruption 5% Temperature Cool (0) Movement Core (100) Ox1 Location -10/Materials Parts ------- > --- POWER (1) -------- (None) > --- PROPULSION (2) --- (None) > --- UTILITY (2) ------ Small Storage Unit > --- WEAPON (2) ------- (None) > --- INVENTORY (8) ---- Light Treads Compact Wheel Compact Wheel Seismic Detector Peak State ------------ > --- POWER ------------ Ion Engine > --- PROPULSION ------- Wheel Wheel > --- UTILITY ---------- Small Storage Unit Improved Terrain Scanner > --- WEAPON ----------- EM Pulse Gun Medium Laser > --- INVENTORY -------- Ion Engine Light Ion Engine Light Treads Compact Wheel Compact Wheel Seismic Detector EM Pulse Gun Mining Laser [Rating: 9] Favorites ----------- Power Light Ion Engine Engine Light Ion Engine Propulsion Wheel Leg Aluminum Leg Wheel Wheel Utility Small Storage Unit Device Improved Terrain Scanner Storage Small Storage Unit Weapon EM Pulse Gun Energy Gun EM Pulse Gun Energy Cannon Beam Cannon Special Weapon Mining Laser Build | -11 -10 ------- Run | Scr Mat Slots Evolved . | . . Power . | . . Propulsion . | . . Utility . | . . Weapon . | . . Parts Attached 9 | 4 5 Power 2 | 1 1 Engine 2 | 1 1 Core . | . . Reactor . | . . Propulsion 3 | 2 1 Treads . | . . Leg . | . . Wheel 3 | 2 1 Hover . | . . Flight . | . . Utility 1 | 1 . Device 1 | 1 . Storage . | . . Processor . | . . Hackware . | . . Protection . | . . Artifact . | . . Weapon 3 | . 3 Energy Gun 1 | . 1 Energy Cannon 1 | . 1 Ballistic Gun . | . . Ballistic Cannon . | . . Launcher . | . . Special Weapon 1 | . 1 Impact Weapon . | . . Slashing Weapon . | . . Piercing Weapon . | . . Special Melee Weapon . | . . Unidentified Prototypes . | . . Parts Lost 10 | . 10 Power 2 | . 2 Propulsion 3 | . 3 Utility 1 | . 1 Weapon 4 | . 4 Highest Loss Streak 10 | . 10 To Critical Strikes . | . . Average Slot Usage (%) 84 | . 84 Engine 12 | . 12 Wheel 25 | . 25 Device 9 | . 9 Storage 14 | . 14 Energy Gun 12 | . 12 Energy Cannon 7 | . 7 Special Weapon 1 | . 1 Naked Turns . | . . Heaviest Build 15 | 15 14 Greatest Support 20 | 20 20 Greatest Overweight (x) 1 | . 1 Average Overweight (x) . | . . Largest Inventory Capacity 8 | 8 8 Average Capacity 8 | 8 8 Most Carried 8 | 8 8 Average Carried 7 | 7 6 Final Capacity 8 | 8 8 Final Carried 8 | 8 4 Class Distribution -------------------- 100% | Mutant Dominant Class ---------------- Mutant | -10/Materials Resources | -11 -10 ----------- Run | Scr Mat Matter Collected 240 | 240 . Remotely . | . . Salvage Created 387 | 287 100 Parts 24 | 17 7 Haulers Intercepted . | . . Recyclers Shooed . | . . Parts Field Recycled . | . . Retrieved Matter . | . . Parts Self-Destructed . | . . Prevented . | . . Kills | -11 -10 ------- Run | Scr Mat Combat Hostiles Destroyed 3 | . 3 Melee 1 | . 1 Guns 1 | . 1 AOE 1 | . 1 Classes Destroyed 6 | 3 3 Worker 2 | 2 . Tunneler 5 | 5 . Recycler 1 | 1 . Watcher 1 | . 1 Swarmer 1 | . 1 Grunt 2 | . 2 Best Kill Streak 5 | 5 3 Combat Bots Only 2 | . 2 Max Kills in Single Turn 1 | 1 1 Gunslinging . | . . Exploded 1 | . 1 Melee 1 | . 1 Uniques/NPCs Destroyed . | . . Combat | -11 -10 -------- Run | Scr Mat Damage Taken 710 | . 710 Core 256 | . 256 Absorbed by Shields . | . . Core Remaining (%) 100 | 100 . Volleys Fired 28 | 15 13 Largest 2 | 2 2 Hottest 100 | 90 100 Shots Fired 49 | 30 19 Gun 41 | 30 11 Cannon 6 | . 6 Launcher . | . . Special 2 | . 2 Kinetic . | . . Thermal 23 | 15 8 Explosive . | . . Electromagnetic 26 | 15 11 Robot Hit Streak 3 | 3 3 Robot Miss Streak 4 | 4 3 Penetration Max . | . . Secondary Targets . | . . Shots Hit Robots 20 | 13 7 Core Hits 14 | 8 6 Critical Kills . | . . Critical Parts Destroyed . | . . Critical Strikes 3 | 2 1 Burn 2 | 2 . Corrupt 1 | . 1 Melee Attacks . | . . Impact . | . . Slashing . | . . Piercing . | . . Sneak Attacks . | . . Combat Hostiles . | . . Follow-up Attacks . | . . Damage Inflicted 413 | 190 223 Guns 278 | 190 88 Cannons 53 | . 53 Explosions 41 | . 41 Melee . | . . Ramming 41 | . 41 Kinetic . | . . Thermal 156 | 62 94 Explosive . | . . Electromagnetic 216 | 128 88 Impact . | . . Slashing . | . . Piercing . | . . Highest Corruption 5 | . 5 Average Corruption 4 | . 4 Corruption Purged . | . . Corruption Blocked . | . . Effects 1 | . 1 Energy Discharges 1 | . 1 Overload Shots . | . . Overflow Damage 92 | . 92 Projectiles . | . . Explosions 89 | . 89 Melee 3 | . 3 Knockbacks . | . . Impact . | . . Kinetic . | . . Secondary . | . . Self-Inflicted Damage 216 | . 216 Shots 3 | . 3 Rammed 15 | . 15 Targets Rammed 15 | . 15 Kicked . | . . Crushed . | . . Highest Temperature 307 | 240 307 Average Temperature 121 | 93 155 Received Heat Transfer 42 | . 42 Effects 3 | . 3 Interference 3 | . 3 Siege Activations . | . . Robots Corrupted . | . . Combat Hostiles . | . . Parts Fried . | . . Impact Corruptions 1 | . 1 Robots Melted . | . . Combat Hostiles . | . . Parts Melted 4 | 4 . Heat Transferred 494 | 333 161 Parts Sabotaged . | . . Parts Stolen . | . . Parts Stripped . | . . Power Chain Reactions 1 | . 1 Missiles Intercepted . | . . Alert | -11 -10 ------- Run | Scr Mat Peak Influence 200 | 40 200 Initial 26 | . 26 Average 47 | 20 98 Maximum Alert Level 1 | . 1 Low Security (%) 98 | 100 95 Level 1 1 | . 4 Level 2 . | . . Level 3 . | . . Level 4 . | . . Level 5 . | . . High Security . | . . Max Security . | . . Squads Dispatched 1 | . 1 Investigation 1 | . 1 Extermination . | . . Reinforcement . | . . Assault . | . . Garrison . | . . Intercept . | . . Searches Triggered . | . . Construction Impeded . | . . Haulers Reinforced . | . . Active Scanning Responses . | . . Cargo Convoy Interrupts . | . . Stealth | -11 -10 --------- Run | Scr Mat Distress Signals . | . . Communications Jammed . | . . Distress Signals . | . . Times Spotted 6 | . 6 Peak Tracking Total 3 | . 3 Tactical Retreats . | . . Traps | -11 -10 ------- Run | Scr Mat Traps Triggered . | . . Indirectly . | . . Trap Hack Attempts . | . . Triggered . | . . Disarmed . | . . Reprogrammed . | . . Reused . | . . Traps Extracted . | . . Installed . | . . Triggered . | . . Machines | -11 -10 ---------- Run | Scr Mat Machines Disabled 2 | . 2 Max in Single Turn 2 | . 2 Machines Sabotaged . | . . Garrisons Compromised . | . . Overloaded Fab Kills . | . . Hacking | -11 -10 --------- Run | Scr Mat Machines Accessed 1 | . 1 Terminals 1 | . 1 Fabricators . | . . Repair Stations . | . . Recycling Units . | . . Scanalyzers . | . . Garrison Access . | . . Total Hacks 2 | . 2 Successful . | . . Failed 2 | . 2 Catastrophic . | . . Database Lockouts . | . . Manual . | . . Terminals 2 | . 2 Fabricators . | . . Repair Stations . | . . Recycling Units . | . . Scanalyzers . | . . Garrison Access . | . . Terminal Hacks . | . . Fabricator Hacks . | . . Repair Station Hacks . | . . Recycling Unit Hacks . | . . Scanalyzer . | . . Garrison Access Hacks . | . . Unauthorized Hacks . | . . Terminals . | . . Fabricators . | . . Repair Stations . | . . Recycling Units . | . . Scanalyzers . | . . Garrison Access . | . . Data Cores Recovered . | . . Used . | . . Hacking Detections 1 | . 1 Full Trace Events 1 | . 1 Feedback Events . | . . Feedback Blocked . | . . Robot Schematics Acquired . | . . Robots Built . | . . Authchips . | . . Time . | . . Total Robot Build Rating . | . . Part Schematics Acquired . | . . Parts Built . | . . Authchips . | . . Time . | . . Total Part Build Rating . | . . Parts Repaired . | . . Time . | . . Parts Recycled . | . . Recycled Matter . | . . Retrieved Matter . | . . Retrieved Components . | . . Parts Scanalyzed . | . . Part Schematics Acquired . | . . Parts Damaged . | . . Bothacking | -11 -10 ------------ Run | Scr Mat Used RIF Installer . | . . Robots Hacked . | . . Non-combat . | . . Combat . | . . Robot Hacks Applied . | . . Relay Couplers Released . | . . Fabnet Peak Effective % . | . . Robots Rewired . | . . Allies Hacked . | . . Hacks Repelled . | . . Allies | -11 -10 -------- Run | Scr Mat Total Allies . | . . Largest Group . | . . Highest-Rated Group . | . . Highest-Rated Ally . | . . Total Orders . | . . Ally Attacks . | . . Total Damage . | . . Kills . | . . Allies Corrupted . | . . Allies Melted . | . . Intel | -11 -10 ------- Run | Scr Mat Robot Analysis Total . | . . Derelict Logs Recovered . | . . Drone Launches . | . . Drone Recoveries . | . . Exploration | -11 -10 ------------- Run | Scr Mat Turns Passed 287 | 188 99 Spaces Moved 159 | 107 52 Core 2 | . 2 Treads . | . . Legs 5 | 5 . Wheels 152 | 102 50 Hover . | . . Flight . | . . Fastest Speed 80 | 80 80 Average Speed 81 | 81 80 Slowest Speed 120 | 120 100 Overloaded Moves . | . . Propulsion Burnouts . | . . Robots Hopped . | . . Cave-ins Triggered . | . . Exploration Rate (%) 12 | 5 20 Regions Visited 1 Branch Regions . Pre-discovered Areas . | . . Known Exits Taken . | . . Unknown Exits Taken 1 | 1 . Scrap Searched . | . . Spaces Dug 2 | . 2 Terrain Destroyed 37 | . 37 Melee . | . . Projectile 2 | . 2 AOE 35 | . 35 Terrain Rammed . | . . Walls Destroyed . | . . Machines Disabled . | . . Actions | -11 -10 --------- Run | Scr Mat Total 264 | 178 86 Wait 41 | 41 . Move 158 | 106 52 Hop . | . . Pick Up 7 | 7 . Fast Attach 2 | 1 1 Attach 6 | 2 4 Detach . | . . Swap 1 | 1 . Drop 6 | 5 1 Fire 28 | 15 13 Melee . | . . Ram 15 | . 15 Kick . | . . Crush . | . . Escape Stasis . | . . Rewire . | . . Trap . | . . Miscellaneous . | . . Route ------- -11/Scrapyard -10/Materials (discovered 1 exit: [*Min]) History --------- Turn | Location | Event 5 | -11/Scrapyard | Discovered new exit (range 3) 189 | -11/Scrapyard | Entered Materials 241 | -10/Materials | Discovered new exit (range 10) 276 | -10/Materials | Core integrity fell below 50% 283 | -10/Materials | Core integrity fell below 20% 288 | -10/Materials | Destroyed by S-10 Pest with Light Assault Rifle Last Messages --------------- 00263_ EM Pulse Gun destroyed. 00264_ Wheel destroyed. 00268_ Mining Laser destroyed. 00272_ Slammed into S-10 Pest. 00272_ Destabilizing: Core damaged (-5). 00273_ Slammed into S-10 Pest. 00276_ Lgt. Ion Engine destroyed. 00276_ System corrupted by crushing effect (+4). 00277_ System corrupted: Energy discharge (-29). 00277_ Slammed into S-10 Pest. 00279_ The unstable cave ceiling collapses. 00279_ Slammed into S-10 Pest. 00279_ Destabilizing: System corrupted (+1). 00280_ Slammed into S-10 Pest. 00280_ Wheel destroyed. 00281_ Slammed into S-10 Pest. 00284_ Destroyed Flight Unit. 00284_ S-10 Pest system corrupted by crushing effect. 00284_ S-10 Pest destroyed. 00285_ Slammed into S-10 Pest. Map ----- +----------------------------------------------------+ | ?????????????????????????????????????????????????? | | ?????????????????????????????????????????????????? | | ?????????????????????????????????????????????????? | | ?????????????????????????????????????????????????? | | ?????????????????????????????????????????????????? | | ?????????????????????????????????????????????????? | | ?????????????????????????????????????????????????? | | ?????????????????????????????????????????????????? | | ?????????????????????????????????????????????????? | | ?????????????????????????????????????????????????? | | ?????????????????????????????????????????????????? | | ?????????????????????????????????????????????????? | | ???????????????????# ??????????????????????????? | | ???????????????????# ??????????????????????????? | | +??????????????????# ??????????????????????????? | | ??#??????????????## ##????????????????????????? | | ?????????????????# ?#???????????????????????? | | ?????????????????# ?????????????????????????? | | #####????????????# < ?????????????????????????? | | ?????????????# ###??????????????????????? | | #??????????#+#? # ##?????????????????????? | | #??????????# #?# ##########????????????????? | | #?????????## ### ##s%% #????????????????? | | #????#?#??# ##*s """ +????????????????? | | ########### ##%%%""" #????????????????? | | #;@%%""" #????????????????? | | +###########+""" ## "#; %% #????????????????? | | ????#?# ;;########????????????????? | | " #?????# T ;;######??????????????????? | | " #?????# u ; #??????????????? | | " #?????# u ;;#########???????????????? | | #?????# ; #??????#????#???????????? | | #?????# ; #???????????????????????? | | ###??????####""; ;; #???????????????????????? | | | | | | | | | | | | | | | | | | | | | | | | | | | | | | | | | +----------------------------------------------------+ Best States ------------- Heat Dissipation 25 Energy Generation 10 Energy Capacity 250 Matter Stores 300 Matter Capacity 300 Sight Range 16 Terrain Scan Range 16 Terrain Scan Density 10 Evasion (%) 45 Item Schematics ----------------- None Robot Schematics ------------------ None Fabricated ------------ Nothing Alien Tech Used ----------------- None Achievements -------------- None Challenges ------------ None Game ------ Seed NeutrinoCoolantRailgun Manual? 0 Play Time 00:05:17 Cumulative 77.6 hours Start 2022.03.28 @ 03:52:39 End 2022.03.28 @ 03:56:18 Sessions 1 Manual Loads 0 Difficulty Rogue Special Mode None Game No. 116 Rogue 70 Adventurer 45 Explorer 1 Win Type - Total 0 Types 0/0/0/0/0/0/0/0/0 Lore% 25 Gallery% 45 Achievement% 32 Wizard Run 0 Options --------- ASCII 0 Keyboard 0 Movement Mouse Keybinds 0 Fullscreen 2 Font 18/X11Bold Map View 76x50 Tactical HUD 1 Map Filters NONE Filters LOW_CONTRAST(13,24,33)|BRIGHTNESS(90)|SATURATION(87) Steam 1 RUN: 2e152cb0-e8f1-4822-9ea5-d8e53e99b9d9